bitfinex/quotes_ETHUSD_20240703
["timestamp","ask_amount","ask_price","bid_price","bid_amount"]
[1719978226829,0.06806882,3366.8,3366.3,4.4853]
[1719978227138,1.48491,3367.2,3366.3,4.4853]
[1719978227321,0.06806882,3366.7,3366.3,1.4853]
[1719978227527,1.48491,3367.2,3366.2,3.0]
[1719978227865,0.51441516,3367.1,3366.2,3.0]
[1719978228027,0.06805539,3367.1,3366.2,4.48534]
[1719978231626,0.06805539,3367.1,3366.3,0.05940025]
[1719978231951,0.06805539,3367.1,3366.4,1.04152403]
[1719978232151,0.06805539,3367.1,3366.8,1.48507]
[1719978232538,7.48,3367.5,3366.8,1.48507]
[1719978232742,0.06810106,3367.0,3366.9,1.48504]
[1719978232965,7.48,3367.5,3366.8,4.48507]
[1719978232966,7.48,3367.5,3367.0,1.48498]
[1719978233549,7.48,3367.5,3367.1,1.48495]
[1719978234038,7.48,3367.5,3366.9,2.791757]
[1719978234239,7.48,3367.5,3367.0,0.05939075]
[1719978235049,7.48,3367.5,3367.0,1.41742753]
[1719978235377,7.48,3367.5,3367.0,2.84302678]
[1719978235577,7.48,3367.5,3367.2,1.48487]
[1719978237143,7.48,3367.5,3367.0,2.84302678]
[1719978237377,1.48465,3367.8,3367.0,1.35803678]
[1719978237680,1.48474,3367.6,3366.8,3.0]
[1719978237838,1.48474,3367.6,3366.6,1.48516]
[1719978238040,0.06835355,3367.5,3366.6,1.48516]
[1719978238339,1.55313355,3367.5,3366.6,2.7999234]
[1719978238572,1.55313355,3367.5,3366.7,3.0]
[1719978238776,0.06835355,3367.5,3366.4,6.1357]
[1719978238955,5.99,3367.3,3366.5,3.0]
[1719978239140,5.99,3367.3,3366.4,2.01467977]
[1719978239356,0.06835355,3367.2,3366.4,2.01467977]
[1719978242351,0.06835355,3367.2,3366.6,5.8304]
[1719978242572,0.06835355,3367.2,3366.7,0.70131389]
[1719978242872,0.06813329,3367.1,3366.7,0.64192173]
[1719978243068,0.06813329,3367.1,3366.8,0.0593922]
[1719978243240,7.48,3367.6,3366.8,0.0593922]
[1719978243443,0.06813329,3367.0,3366.7,2.12704173]
[1719978243770,0.06813329,3367.0,3366.6,5.8304]
[1719978243771,8.96474,3367.6,3366.8,0.79574417]
[1719978243938,0.06813329,3366.9,3366.6,5.8304]
[1719978244272,0.06813596,3366.8,3366.5,1.48521]
[1719978244775,8.96474,3367.6,3366.4,3.52941977]
[1719978244776,6.1312,3367.2,3366.4,3.52941977]
[1719978244963,6.1312,3367.2,3366.5,3.0]
[1719978245269,6.1312,3367.2,3366.1,4.48536]
[1719978245270,1.55314625,3367.1,3366.1,3.0]
[1719978246640,7.55452,3366.8,3366.1,3.0]
[1719978246840,1.48516,3366.7,3365.8,3.0]
[1719978247044,1.55326105,3366.7,3365.8,3.0]
[1719978247373,1.55326105,3366.7,3365.6,1.48561]
[1719978247574,1.69926105,3366.7,3365.7,0.83093]
[1719978249545,0.51449718,3366.6,3365.7,0.83093]
[1719978249872,0.06792373,3366.5,3365.7,0.83093]
[1719978250073,1.48527,3366.4,3365.7,0.83093]
[1719978250551,0.06792373,3366.3,3365.7,0.83093]
[1719978250748,1.48527,3366.4,3365.7,0.83093]
[1719978250997,0.06788073,3366.2,3365.7,0.83093]
[1719978251166,1.48527,3366.4,3365.7,0.83093]
[1719978251673,0.06786729,3366.3,3365.7,0.83093]
[1719978252485,1.48521,3366.6,3365.8,0.05941342]
[1719978252657,0.06786729,3366.2,3365.8,0.59701276]
[1719978252979,1.48522,3366.5,3365.8,0.59701276]
[1719978253184,0.06786729,3366.1,3365.8,0.59701276]
[1719978253492,1.48522,3366.5,3365.8,0.59701276]
[1719978254080,0.06786729,3366.4,3365.8,0.59701276]
[1719978254245,0.06786729,3366.4,3365.8,0.53759934]
[1719978254650,0.06786729,3366.4,3365.9,0.05941344]
[1719978256956,0.06786729,3366.4,3365.9,0.05941346]
[1719978257686,0.146,3366.7,3366.0,0.20825028]
[1719978257852,0.0677571,3366.3,3366.1,0.05940811]
[1719978258057,0.146,3366.7,3366.1,0.05940811]
[1719978258276,0.0677571,3366.2,3366.1,0.05940811]
[1719978258457,0.146,3366.7,3366.1,0.05940811]
[1719978258659,0.0677571,3366.2,3366.1,0.05940811]
[1719978258859,0.146,3366.7,3366.1,0.73702988]
[1719978259080,0.0677571,3366.2,3366.1,0.05940811]
[1719978259385,0.0677571,3366.2,3366.0,0.20825028]
[1719978259386,0.146,3366.7,3366.0,1.69365028]
[1719978259587,0.0677571,3366.2,3366.1,1.48536]
[1719978259765,0.146,3366.7,3366.2,1.48534]
[1719978260167,6.1805,3366.0,3365.1,1.48583]
[1719978262166,6.1805,3366.0,3364.8,1.48596]
[1719978262167,1.48549,3365.9,3364.8,1.48596]
[1719978262592,1.48553,3365.8,3364.8,1.48596]
[1719978262778,0.766603,3365.7,3364.8,1.48596]
[1719978262981,0.766603,3365.7,3364.6,7.22165]
[1719978263158,0.766603,3365.7,3364.6,1.48605]
[1719978263796,2.252183,3365.7,3364.6,1.48605]
[1719978263962,1.48558,3365.7,3364.6,1.48605]
[1719978264308,1.48563,3365.6,3364.6,1.48605]
[1719978266491,1.48563,3365.6,3364.5,3.03]
[1719978266492,1.48569,3365.5,3364.5,3.03]
[1719978266689,1.48569,3365.5,3364.5,0.03]
[1719978266991,1.4857,3365.4,3364.5,0.03]
[1719978267303,1.4857,3365.4,3364.6,1.025174]
[1719978267806,7.72755,3365.3,3364.6,1.025174]
[1719978268097,7.72755,3365.3,3364.5,0.03]
[1719978268098,0.06536147,3365.2,3364.5,0.03]
[1719978270080,1.48579,3365.2,3364.5,0.03]
[1719978270275,1.48593,3364.9,3364.5,0.03]
[1719978270476,1.48603,3364.7,3364.5,0.03]
[1719978270688,7.61233,3364.7,3364.5,0.03]
[1719978271088,0.0651786,3364.6,3364.5,0.03]
[1719978278684,5.3183,3365.1,3364.5,0.03]
[1719978278886,0.06474747,3364.6,3364.5,0.03]
[1719978279083,5.3183,3365.1,3364.5,0.03]
[1719978279282,0.06427691,3364.6,3364.5,0.03]
[1719978279521,5.3183,3365.1,3364.5,0.03]
[1719978279690,0.06427691,3364.6,3364.5,0.03]
[1719978279887,5.3183,3365.1,3364.5,0.03]
[1719978280193,0.06427691,3364.6,3364.5,0.03]
[1719978280513,5.3183,3365.1,3364.5,0.03]
[1719978280718,0.06427691,3364.6,3364.5,0.03]
[1719978280920,5.3183,3365.1,3364.5,0.03]
[1719978281083,0.06435221,3364.6,3364.5,0.03]
[1719978281284,0.06435221,3365.0,3364.5,0.03]
[1719978281484,0.06228246,3364.6,3364.5,0.03]
[1719978281820,6.7896144,3365.1,3364.5,0.03]
[1719978281993,0.06228246,3364.6,3364.5,0.03]
[1719978282189,6.7896144,3365.1,3364.5,0.03]
[1719978282412,0.06228246,3364.6,3364.5,0.03]
[1719978282595,6.7896144,3365.1,3364.5,0.03]
[1719978282786,0.06228246,3364.6,3364.5,0.03]
[1719978282987,6.7896144,3365.1,3364.5,0.03]
[1719978283184,0.06228246,3364.6,3364.5,0.03]
[1719978283408,1.48597,3364.8,3364.5,0.03]
[1719978283606,0.06225825,3364.6,3364.5,0.03]
[1719978283806,1.48597,3364.8,3364.5,0.03]
[1719978284417,0.06018297,3364.7,3364.5,0.03]
[1719978284782,1.48591,3365.0,3364.5,0.03]
[1719978284989,0.06012379,3364.6,3364.5,0.03]
[1719978285203,5.3037744,3365.1,3364.5,0.03]
[1719978285408,0.06012379,3364.6,3364.5,0.64587646]
[1719978285619,6.7896144,3365.1,3364.5,0.64587646]
[1719978285921,6.7896144,3365.1,3364.5,0.08943646]
[1719978285922,0.05803429,3365.0,3364.5,0.08943646]
[1719978287992,0.05803429,3365.0,3364.5,1.57553646]
[1719978288318,0.05430245,3364.9,3364.5,1.57553646]
[1719978288625,1.48558,3365.7,3364.5,1.57553646]
[1719978288924,1.48558,3365.7,3364.6,0.85961165]
[1719978289097,5.6034,3365.5,3364.5,0.03]
[1719978289418,0.51469715,3365.4,3364.6,1.48605]
[1719978289587,1.48567,3365.5,3364.6,3.0]
[1719978289783,0.05433742,3365.3,3364.7,2.39352252]
[1719978290013,0.31060756,3365.9,3364.8,0.05942537]
[1719978290221,0.05433742,3365.2,3364.7,2.33409]
[1719978290415,0.31060756,3365.9,3364.7,2.33409]
[1719978290640,0.51467841,3365.8,3364.8,1.631509]
[1719978290792,6.11807841,3365.7,3364.6,3.0]
[1719978290991,6.11807841,3365.7,3364.5,0.03]
[1719978290992,1.48579,3365.3,3364.5,0.03]
[1719978291186,1.48579,3365.3,3364.5,0.08943534]
[1719978291393,2.00053375,3365.2,3364.5,0.08943534]
[1719978291589,1.54024041,3365.2,3364.5,0.08943534]
[1719978291905,1.54024041,3365.2,3364.5,1.09210187]
[1719978292930,0.51473744,3365.1,3364.5,1.09210187]
[1719978293091,1.48579,3365.2,3364.5,1.09210187]
[1719978293291,0.05441006,3365.0,3364.5,1.09210187]
[1719978293528,1.48579,3365.2,3364.5,1.09210187]
[1719978293747,0.05441006,3364.9,3364.5,1.09210187]
[1719978293927,1.48579,3365.2,3364.5,1.09210187]
[1719978294125,0.0543993,3364.8,3364.5,1.09210187]
[1719978294450,1.48579,3365.2,3364.5,1.09210187]
[1719978294597,0.0543993,3364.7,3364.5,1.09210187]
[1719978294806,1.48579,3365.2,3364.5,1.09210187]
[1719978295157,0.56914801,3365.1,3364.5,1.09210187]
[1719978295325,0.51474602,3365.0,3364.5,1.09210187]
[1719978295833,0.05440199,3364.9,3364.5,1.09210187]
[1719978296151,1.48579,3365.2,3364.5,1.09210187]
[1719978296301,0.05439661,3364.8,3364.5,1.09210187]
[1719978296502,1.48579,3365.2,3364.5,1.09210187]
[1719978296704,0.05434281,3364.7,3364.5,0.03]
[1719978297003,1.48579,3365.2,3364.5,0.03]
[1719978297208,0.51474797,3365.1,3364.5,0.03]
[1719978297521,0.51474797,3365.0,3364.5,0.03]
[1719978297716,1.4857,3365.4,3364.5,1.06253219]
[1719978297945,0.05434281,3364.9,3364.5,2.54863219]
[1719978298148,1.4857,3365.4,3364.5,2.54863219]
[1719978298357,0.05434281,3364.8,3364.6,3.0]
[1719978298644,0.05434281,3364.8,3364.5,0.03]
[1719978298645,7.10574,3365.1,3364.5,0.03]
[1719978298849,0.05434281,3364.7,3364.5,0.03]
[1719978299007,7.10574,3365.1,3364.5,0.03]
[1719978299207,0.05434281,3364.6,3364.5,0.03]
[1719978299408,7.10574,3365.1,3364.5,0.03]
[1719978299645,0.05434281,3364.6,3364.5,0.03]
[1719978299867,7.10574,3365.1,3364.5,0.03]
[1719978300030,0.05434281,3364.6,3364.5,0.03]
[1719978300227,7.10574,3365.1,3364.5,0.03]
[1719978300429,0.05434281,3364.6,3364.5,0.03]
[1719978301077,0.51481343,3364.6,3364.5,0.03]
[1719978301258,7.70425992,3364.6,3364.5,0.03]
[1719978301558,8.84163858,3364.6,3364.5,0.03]
[1719978302060,9.81288515,3364.6,3364.5,0.03]
[1719978302357,10.73474702,3364.6,3364.5,0.03]
[1719978303370,10.32782767,3364.6,3364.5,0.03]
[1719978303584,10.10835044,3364.6,3364.5,0.03]
[1719978304225,0.05430515,3364.6,3364.5,0.03]
[1719978304533,6.76549,3365.0,3364.5,0.03]
[1719978304534,1.48592,3364.9,3364.5,0.03]
[1719978304736,1.53776906,3364.6,3364.5,0.03]
[1719978304934,3.48691431,3364.6,3364.5,0.03]
[1719978305256,4.05364406,3364.6,3364.5,0.03]
[1719978305429,4.49007893,3364.6,3364.5,0.03]
[1719978306671,6.03085424,3364.6,3364.5,0.03]
[1719978308232,6.03077519,3364.6,3364.5,0.03]
[1719978309647,4.10828032,3364.6,3364.5,0.03]
[1719978310026,1.59245892,3364.6,3364.5,0.03]
[1719978310219,0.05179252,3364.6,3364.5,0.03]
[1719978310651,1.48588,3365.0,3364.5,0.03]
[1719978310852,0.05187059,3364.6,3364.5,0.03]
[1719978311062,8.9658,3365.2,3364.5,0.54111389]
[1719978311265,0.05194596,3364.6,3364.5,0.54111389]
[1719978311470,8.9658,3365.2,3364.5,0.54111389]
[1719978311643,0.05194596,3364.6,3364.5,0.54111389]
[1719978311849,1.4858,3365.2,3364.5,0.54111389]
[1719978312046,1.54125127,3365.1,3364.5,0.54111389]
[1719978312246,0.05194596,3365.1,3364.6,0.55628139]
[1719978312560,1.48576,3365.3,3364.6,0.55628139]
[1719978312735,0.05201326,3365.0,3364.5,0.54111389]
[1719978312931,1.48576,3365.3,3364.5,0.54111389]
[1719978313155,0.05201326,3364.9,3364.5,0.54111389]
[1719978313359,1.48576,3365.3,3364.6,0.0594339]
[1719978313561,0.05201326,3364.8,3364.6,0.0594339]
[1719978313774,1.48576,3365.3,3364.6,0.62165868]
[1719978313974,0.05201326,3364.7,3364.6,0.62165868]
[1719978314146,2.05613666,3365.2,3364.6,0.62165868]
[1719978314473,0.05201326,3364.7,3364.6,0.62165868]
[1719978314648,1.54141038,3365.1,3364.6,0.62165868]
[1719978314649,1.54139764,3365.2,3364.6,0.62165868]
[1719978314982,2.05616273,3365.1,3364.5,0.54111389]
[1719978315147,2.05616273,3365.0,3364.5,0.03]
[1719978315474,1.54140356,3364.9,3364.5,0.03]
[1719978315766,0.05201326,3364.9,3364.5,0.03]
[1719978315974,1.48584,3365.1,3364.5,0.03]
[1719978316143,0.05206706,3364.8,3364.5,0.03]
[1719978316340,1.48584,3365.1,3364.5,0.03]
[1719978316541,0.05206706,3364.7,3364.5,0.03]
[1719978316741,1.48584,3365.1,3364.5,0.53517]
[1719978316942,0.05206706,3364.6,3364.5,0.03]
[1719978317174,1.48584,3365.1,3364.5,0.03]
[1719978317373,0.05206706,3364.6,3364.5,0.03]
[1719978317539,1.48584,3365.1,3364.5,0.03]
[1719978317739,0.05206706,3364.6,3364.5,0.03]
[1719978317963,1.48584,3365.1,3364.5,0.53517]
[1719978318172,0.05206706,3364.6,3364.5,0.03]
[1719978318383,1.48584,3365.1,3364.5,0.03]
[1719978318569,0.05206706,3364.6,3364.5,0.03]
[1719978318779,1.54139764,3365.2,3364.5,0.03]
[1719978319080,0.05206706,3364.6,3364.5,0.0894349]
[1719978319273,1.48584,3365.1,3364.5,0.74917139]
[1719978319470,0.05205899,3364.6,3364.5,0.68973649]
[1719978319657,1.48584,3365.1,3364.5,0.68973649]
[1719978319864,0.05205899,3364.6,3364.5,0.03]
[1719978320362,1.48584,3365.1,3364.5,0.03]
[1719978320563,0.05205899,3364.6,3364.5,0.03]
[1719978320745,1.48584,3365.1,3364.5,0.03]
[1719978320950,0.05205899,3364.6,3364.5,0.03]
[1719978321161,1.48584,3365.1,3364.5,0.53517]
[1719978321367,0.05205899,3364.6,3364.5,0.03]
[1719978321590,1.48584,3365.1,3364.5,0.03]
[1719978321760,0.05205899,3364.6,3364.5,0.03]
[1719978321967,1.48584,3365.1,3364.5,0.03]
[1719978322167,0.05205899,3364.6,3364.5,0.03]
[1719978322480,1.48584,3365.1,3364.5,0.03]
[1719978322658,0.05205899,3364.6,3364.5,0.03]
[1719978322859,1.48589,3365.0,3364.5,0.03]
[1719978323055,0.05205899,3364.6,3364.5,0.03]
[1719978323267,1.48589,3365.0,3364.5,0.03]
[1719978323471,0.05205899,3364.6,3364.5,0.03]
[1719978323667,1.48589,3365.0,3364.5,0.03]
[1719978323870,0.05205899,3364.6,3364.5,0.03]
[1719978324166,0.05207246,3364.6,3364.5,0.03]
[1719978324479,1.48597,3364.8,3364.5,0.03]
[1719978324678,0.05033716,3364.6,3364.5,0.03]
[1719978324886,1.48597,3364.8,3364.5,0.03]
[1719978325068,0.05033716,3364.6,3364.5,0.03]
[1719978325264,1.48597,3364.8,3364.5,0.03]
[1719978325588,2.05619906,3364.7,3364.5,0.03]
[1719978325792,1.5414723,3364.6,3364.5,0.03]
[1719978326318,0.05028062,3364.6,3364.5,0.03]
[1719978326478,1.48597,3364.8,3364.5,0.03]
[1719978326816,1.59159551,3364.7,3364.5,0.03]
[1719978327119,1.5414934,3364.6,3364.5,0.03]
[1719978327317,1.54165192,3364.6,3364.5,0.03]
[1719978327477,0.05008256,3364.6,3364.5,0.03]
[1719978327816,3.02718764,3365.2,3364.5,5.0268]
[1719978327975,2.05649078,3365.1,3364.6,0.56211425]
[1719978328176,0.05008256,3365.1,3364.6,0.56211425]
[1719978328998,1.54176348,3365.0,3364.6,0.50268]
[1719978329309,1.54176348,3365.0,3364.5,0.03]
[1719978329310,2.05076491,3364.9,3364.5,0.03]
[1719978329497,2.05651583,3364.8,3364.5,0.03]
[1719978329679,2.10674646,3364.7,3364.5,0.03]
[1719978329879,1.54176348,3364.6,3364.5,0.03]
[1719978330306,1.59186154,3364.6,3364.5,0.03]
[1719978330478,3.07792154,3364.6,3364.5,0.03]
[1719978330679,3.59274665,3364.6,3364.5,0.03]
[1719978330918,3.07792154,3364.6,3364.5,0.03]
[1719978331879,3.59274545,3364.6,3364.5,0.03]
[1719978332079,3.07792154,3364.6,3364.5,0.03]
[1719978332280,3.59274129,3364.6,3364.5,0.03]
[1719978333299,3.59276327,3364.6,3364.5,0.03]
[1719978333502,3.59276317,3364.6,3364.5,0.03]
[1719978334235,2.10670317,3364.6,3364.5,0.03]
[1719978335019,0.56500143,3364.6,3364.5,0.03]
[1719978335202,0.05018212,3364.6,3364.5,0.03]
[1719978335381,0.56498542,3364.6,3364.5,0.03]
[1719978336494,0.56498664,3364.6,3364.5,0.03]
[1719978336925,0.05018212,3364.6,3364.5,0.03]
[1719978337216,2.1067175,3364.6,3364.5,0.03]
[1719978339490,2.1224296,3364.6,3364.5,0.03]
[1719978339692,4.17886918,3364.6,3364.5,0.03]
[1719978339927,3.5926817,3364.6,3364.5,0.03]
[1719978342819,3.5929853,3364.6,3364.5,0.03]
[1719978343835,2.1069253,3364.6,3364.5,0.03]
[1719978344226,3.5929853,3364.6,3364.5,0.03]
[1719978345914,3.59300821,3364.6,3364.5,0.03]
[1719978346116,4.17922676,3364.6,3364.5,0.03]
[1719978347845,5.15522676,3364.6,3364.5,0.03]
[1719978348350,4.56900821,3364.6,3364.5,0.03]
[1719978349159,2.51224212,3364.6,3364.5,0.03]
[1719978349352,2.05105868,3364.6,3364.5,0.03]
[1719978349529,3.59303341,3364.6,3364.5,0.03]
[1719978349852,3.59303343,3364.6,3364.5,0.03]
[1719978350352,4.56903343,3364.6,3364.5,0.03]
[1719978350555,2.51224212,3364.6,3364.5,0.03]
[1719978350759,4.56898551,3364.6,3364.5,0.03]
[1719978352366,2.51224212,3364.6,3364.5,0.03]
[1719978352572,4.56898768,3364.6,3364.5,0.03]
[1719978353239,12.22222417,3364.6,3364.5,0.03]
[1719978353574,1.48662,3363.4,3362.6,3.8776]
[1719978353770,3.08147874,3363.3,3362.6,3.8776]
[1719978353977,2.05674556,3363.2,3362.6,3.8776]
[1719978354146,1.48655,3363.5,3362.6,4.8536]
[1719978354352,2.10512164,3363.4,3362.7,0.63406]
[1719978354672,1.54149805,3363.3,3362.7,0.63406]
[1719978354858,1.54149805,3363.3,3362.8,0.976]
[1719978355048,8.96635,3364.0,3363.0,0.976]
[1719978355252,8.96635,3364.0,3362.9,4.2127623]
[1719978355253,0.04851785,3363.2,3363.1,0.05946091]
[1719978355558,8.96632,3364.0,3363.1,1.605422]
[1719978355751,2.10486581,3363.9,3363.1,0.629422]
[1719978355951,2.0564772,3363.8,3363.1,0.629422]
[1719978356154,1.54154196,3363.7,3363.1,0.629422]
[1719978356472,0.04838861,3363.6,3363.1,0.629422]
[1719978356676,0.04838861,3363.6,3363.4,4.1734]
[1719978356970,13.65611,3364.5,3363.4,4.1734]
[1719978356971,0.04831324,3363.5,3363.4,4.1734]
[1719978357165,1.48624,3364.2,3363.4,4.1734]
[1719978357360,2.10486022,3364.1,3363.4,4.1734]
[1719978357674,2.05654698,3364.0,3363.4,4.1734]
[1719978357977,1.48624,3364.2,3363.4,4.1734]
[1719978358146,2.10460246,3364.1,3363.4,4.1734]
[1719978358344,1.54137018,3364.0,3363.4,4.1734]
[1719978358546,1.58976202,3363.9,3363.4,4.1734]
[1719978358856,0.04841825,3363.9,3363.4,4.1734]
[1719978359173,1.48624,3364.2,3363.4,4.1734]
[1719978359342,2.10471341,3364.1,3363.4,4.1734]
[1719978359540,3.54262516,3364.0,3363.4,4.1734]
[1719978359856,2.05629516,3363.9,3363.4,4.1734]
[1719978360054,1.54137443,3363.8,3363.4,4.1734]
[1719978360560,0.04840748,3363.7,3363.4,4.1734]
[1719978360737,1.48633,3364.0,3363.4,4.1734]
[1719978360942,0.34566448,3363.9,3363.4,4.1734]
[1719978361262,0.04840748,3363.9,3363.4,4.1734]
[1719978361588,1.48635,3364.0,3363.4,4.1734]
[1719978361788,1.48625,3364.2,3363.4,4.1734]
[1719978361789,3.07616011,3363.9,3363.4,4.1734]
[1719978362000,0.30761601,3363.8,3363.4,4.1734]
[1719978362280,0.04844249,3363.7,3363.4,4.1734]
[1719978362786,0.04842364,3363.6,3363.1,4.0068]
[1719978363074,1.48637,3363.9,3363.2,3.0]
[1719978363274,1.54129853,3363.8,3363.2,3.0]
[1719978363445,1.58966561,3363.8,3363.2,3.0]
[1719978363644,0.04836708,3363.8,3363.2,3.0]
[1719978364102,1.48637,3363.9,3363.2,3.0]
[1719978364481,0.04836708,3363.8,3363.2,3.0]
[1719978366299,1.68825079,3363.8,3363.1,4.0068]
[1719978366503,3.02698942,3363.7,3363.1,4.0068]
[1719978366700,1.48645,3363.7,3363.1,4.0068]
[1719978366868,0.04675754,3363.6,3363.1,4.0068]
[1719978367274,0.04675754,3363.6,3362.7,1.48687]
[1719978367536,0.04675754,3363.6,3362.8,4.0737]
[1719978367821,0.04675754,3363.5,3362.9,3.0]
[1719978368021,1.48645,3363.7,3362.9,3.0]
[1719978368882,1.48639,3363.9,3362.9,3.0]
[1719978369089,1.48641,3363.8,3363.0,0.8857935]
[1719978369317,1.53316754,3363.8,3363.0,0.8857935]
[1719978371098,1.53316754,3363.8,3363.1,0.05946207]
[1719978371603,1.53316754,3363.8,3362.9,4.48681]
[1719978372701,1.53316754,3363.8,3362.9,3.0]
[1719978373009,2.23340629,3363.8,3362.9,3.0]
[1719978373502,0.51496422,3363.7,3362.9,3.0]
[1719978373703,2.23340629,3363.8,3362.9,3.0]
[1719978373704,1.4865,3363.6,3362.9,3.0]
[1719978373912,1.5331956,3363.6,3362.9,3.0]
[1719978375808,1.5331956,3363.6,3363.1,0.976]
[1719978379400,0.22334344,3363.5,3362.9,3.0]
[1719978379619,0.22334344,3363.5,3361.4,3.27547]
[1719978379620,1.48674,3363.1,3362.2,4.0736]
[1719978379935,0.04664446,3363.0,3362.6,0.976]
[1719978380548,0.71438298,3363.3,3362.6,0.976]
[1719978380827,0.51503515,3363.2,3362.8,0.976]
[1719978381032,0.04664176,3363.1,3362.8,0.976]
[1719978381235,0.71438298,3363.3,3362.8,0.976]
[1719978381382,0.56167683,3363.2,3362.8,0.976]
[1719978381579,0.04664176,3363.2,3362.8,0.976]
[1719978381792,5.3829,3363.4,3363.0,0.976]
[1719978382015,0.56165965,3363.3,3363.0,0.976]
[1719978382216,0.04664176,3363.3,3363.2,0.976]
[1719978382381,1.48646,3363.7,3363.2,0.976]
[1719978382583,2.10187197,3363.6,3363.2,0.976]
[1719978382889,1.27936628,3363.5,3363.2,0.976]
[1719978383290,0.51500308,3363.4,3363.2,0.976]
[1719978383511,0.56156404,3363.4,3363.2,0.976]
[1719978383807,0.51500308,3363.3,3363.2,0.976]
[1719978384188,0.04656096,3363.3,3363.2,0.976]
[1719978384426,0.51500308,3363.4,3363.2,0.976]
[1719978384630,0.56156404,3363.3,3363.2,0.976]
[1719978385086,0.04656096,3363.3,3363.2,0.976]
[1719978385495,1.48651,3363.6,3363.2,0.976]
[1719978385802,1.61522391,3363.5,3363.2,0.976]
[1719978385991,0.56154299,3363.4,3363.2,0.976]
[1719978386190,0.04656096,3363.4,3363.2,0.976]
[1719978387035,0.51499713,3363.3,3363.2,0.976]
[1719978387531,0.56155809,3363.3,3363.2,0.976]
[1719978388307,0.04656096,3363.3,3363.2,0.976]
[1719978388630,1.10024188,3363.5,3363.2,0.976]
[1719978388795,0.0461582,3363.4,3363.2,0.976]
[1719978391695,0.1921582,3363.4,3363.2,0.976]
[1719978391894,0.1921582,3363.4,3363.3,0.976]
[1719978393841,0.70714769,3363.4,3362.5,5.52326]
[1719978394007,0.51498949,3363.3,3362.8,0.976]
[1719978394208,0.04419794,3363.2,3362.8,0.976]
[1719978394409,0.146,3363.4,3362.8,0.976]
[1719978394626,2.09940237,3363.3,3362.8,0.976]
[1719978394826,0.04419794,3363.3,3362.8,0.976]
[1719978396225,0.04419794,3363.3,3363.2,0.976]
[1719978397503,0.04419794,3363.3,3363.0,0.976]
[1719978398937,0.04419794,3363.3,3362.8,1.48685]
[1719978399235,0.04419794,3363.3,3363.1,0.976]
[1719978403333,0.04419794,3363.3,3362.9,0.05946323]
[1719978403510,0.04419794,3363.3,3362.8,1.48685]
[1719978403713,0.04419794,3363.3,3362.6,7.1337]
[1719978403918,2.055209,3363.2,3362.3,4.2232]
[1719978404225,2.055209,3363.2,3362.0,4.2232]
[1719978404226,6.63649761,3363.1,3362.0,4.2232]
[1719978404427,4.58128861,3363.1,3361.8,1.48727]
[1719978404726,4.58128861,3363.1,3362.4,0.976]
[1719978404727,3.9205,3362.7,3362.4,0.976]
[1719978404935,2.0549708,3362.6,3362.4,0.976]
[1719978405114,1.53986145,3362.5,3362.4,0.976]
[1719978405316,2.05498275,3362.5,3362.4,0.976]
[1719978405616,1.5839005,3362.5,3362.4,0.976]
[1719978405820,1.5839005,3362.5,3361.7,5.71053]
[1719978405821,1.5839005,3362.5,3361.8,5.344]
[1719978406015,0.04403905,3362.5,3361.8,5.344]
[1719978406210,3.9205,3362.7,3361.8,5.344]
[1719978406411,1.58373109,3362.6,3361.8,5.344]
[1719978406634,0.04390435,3362.6,3361.8,5.344]
[1719978406839,1.53969983,3362.5,3361.8,5.344]
[1719978407038,0.04391244,3362.4,3361.8,5.344]
[1719978407407,6.19413565,3362.7,3361.8,5.344]
[1719978407626,1.58370114,3362.6,3361.8,5.344]
[1719978407809,0.04390435,3362.6,3361.8,6.62826375]
[1719978409840,0.04390435,3362.6,3361.0,1.48761]
[1719978409841,3.9249,3362.2,3360.8,1.4877]
[1719978410141,3.9249,3362.2,3360.7,5.68737]
[1719978410142,1.48729,3361.8,3360.7,5.68737]
[1719978410304,0.4083412,3361.8,3360.7,5.17727938]
[1719978410505,3.9249,3361.6,3360.7,5.17727938]
[1719978410906,3.9249,3361.6,3360.8,1.48771]
[1719978411145,0.04212516,3361.5,3360.8,1.48771]
[1719978411369,0.04212516,3361.5,3360.7,5.17727938]
[1719978411370,0.04212516,3361.5,3361.0,3.8822]
[1719978411639,1.48711,3362.3,3361.2,1.48755]
[1719978411846,1.48711,3362.3,3361.3,0.05948881]
[1719978411847,0.04212516,3362.2,3361.3,0.05948881]
[1719978412413,0.04212516,3362.2,3361.3,1.54699881]
[1719978412631,4.1777,3362.4,3361.3,1.54699881]
[1719978412831,1.48707,3362.3,3361.4,0.51755683]
[1719978413151,0.04190382,3362.2,3361.5,0.05948887]
[1719978413532,1.48707,3362.3,3361.5,0.05948887]
[1719978413954,0.04190382,3362.2,3361.5,0.05948887]
[1719978414458,1.48707,3362.3,3361.5,0.05948887]
[1719978414651,0.04190382,3362.2,3361.5,0.05948887]
[1719978414952,0.04190382,3362.2,3361.5,0.26594444]
[1719978415330,4.1777,3362.4,3361.5,0.26594444]
[1719978415531,0.04190382,3362.1,3361.5,0.26594444]
[1719978415737,4.1777,3362.4,3361.5,0.26594444]
[1719978416040,0.04190382,3362.3,3361.5,0.26594444]
[1719978416558,0.04190382,3362.3,3361.5,0.20645557]
[1719978418571,0.04190382,3362.3,3361.4,0.51755683]
[1719978420438,0.04190382,3362.3,3361.5,4.1217]
[1719978420877,0.04190382,3362.3,3361.6,0.05948517]
[1719978421048,0.04190382,3362.3,3361.5,4.1217]
[1719978421536,0.04190382,3362.3,3361.6,3.05948519]
[1719978421740,0.04190382,3362.3,3361.6,3.97810739]
[1719978422838,0.04190382,3362.3,3361.7,0.05948521]
[1719978423050,3.8407,3363.0,3362.0,5.60887]